Cogmind - Beta 10.2 @@@ ROGUE MODE // 2021.01.09 @ 10:47:49 Player: Wyvric Result: Escaped! Performance ------------- Evolutions (9) 4500 Regions Visited (29) 5800 Robots Destroyed (359) 1795 Value Destroyed (20952) 20952 Prototype IDs (49) 980 Alien Tech Used (2) 400 Bonus (17752) 17752 TOTAL SCORE: 52179 Bonus ------- Triggered High Security 1000 High Alert Combat Kills 5948 Follower Combat Kills 950 Met Data Miner 300 Met Imprinter 300 Met Zhirov 300 Met Warlord at Base 500 MAIN.C Attacked Warlord 500 Warlord Defense Kill 5628 Win 3000 Friendly Fire -674 Cogmind --------- Core Integrity 319/1600 Matter 295/300 Energy 78/100 System Corruption 4% Temperature Cool (0) Movement Core (50) Location To Epsilon Eridani Parts ------- > --- POWER (2) -------- (None) > --- PROPULSION (4) --- (None) > --- UTILITY (15) ----- Advanced Terrain Scan Processor Experimental Target Analyzer > --- WEAPON (4) ------- (None) > --- INVENTORY (4) ---- Vortex Cannon Molecular Deconstructor Peak State ------------ > --- POWER ------------ Vortex Chain Reactor > --- PROPULSION ------- Improved Heavy Siege Treads Improved Heavy Siege Treads > --- UTILITY ---------- Experimental Coolant Injector Large Storage Unit High-capacity Storage Unit High-capacity Storage Unit High-capacity Storage Unit High-capacity Storage Unit Experimental Targeting Computer Experimental Target Analyzer Advanced Core Analyzer Advanced Weapon Cycler Light Regenerative Plating Improved Focal Shield Experimental Hardlight Generator Advanced Hacking Suite Advanced System Shield > --- WEAPON ----------- Nova Cannon Enhanced Nova Cannon Enhanced Nova Cannon Helical Railgun > --- INVENTORY -------- Reinforced Antimatter Reactor Armored Heavy Treads Improved Heavy Siege Treads Improved Heavy Siege Treads Biometal Heavy Treads Centrium Leg Myomer Exoskeleton Advanced Heat Sink Matter Compressor Makeshift Sensor Array Advanced Terrain Scan Processor Advanced Transmission Jammer Experimental Core Shielding EM Dispersion Field Improved System Restoration Module Long-range Tractor Beam Transdimensional Reconstructor Vortex Cannon Vortex Cannon Nova Cannon Enhanced Nova Cannon Omega Cannon Micro-nuke Launcher Advanced Remote Datajack Molecular Deconstructor Enhanced Force Lance Portable AFG [Rating: 195] Favorites ----------- Power Improved Deuterium Engine Engine Improved Deuterium Engine Power Core Fission Core Reactor Antimatter Reactor Propulsion Armored Medium Treads Treads Armored Medium Treads Leg Aluminum Leg Wheel Armored Huge Wheel Flight Unit Cesium-ion Thruster Utility Large Storage Unit Device Makeshift Sensor Array Storage Large Storage Unit Processor Improved Signal Interpreter Hackware Makeshift System Shield Protection Light Regenerative Plating Weapon Flak Gun Energy Gun Dispersion Rifle Energy Cannon Compact HERF Cannon Ballistic Gun Flak Gun Ballistic Cannon Flak Cannon Launcher Heavy Rocket Launcher Impact Weapon Hammer Slashing Weapon Phasing Sabre Piercing Weapon Enhanced Force Lance Build | -11 -10 -9 -8 -7 -7 -7 -7 -6 -6 -6 -6 -6 -5 -5 -5 -5 -5 -5 -5 -4 -4 -4 -4 -4 -3 -3 -3 -2 -1 ------- Run | Scr Mat Mat Mat Fac Low Low Zio Pro Fac Low Low Dat Pro Fac Was Fac Upp Upp Zhi Pro Fac Upp Upp War Pro Res Tes Res Acc Slots Evolved 18 | . . 2 2 2 . . . . 2 . . . . 2 . . . . . . 2 . . . . 2 . 2 2 Power 1 | . . . . . . . . . . . . . . . . . . . . . . . . . . 1 . . . Propulsion 2 | . . . . . . . . . . . . . . 2 . . . . . . . . . . . . . . . Utility 13 | . . 2 2 2 . . . . 2 . . . . . . . . . . . 2 . . . . 1 . 2 . Weapon 2 | . . . . . . . . . . . . . . . . . . . . . . . . . . . . . 2 Parts Attached 792 | 6 13 26 20 16 22 22 13 15 46 15 4 3 8 11 12 13 6 14 6 24 14 24 40 36 45 79 53 99 87 Power 28 | 1 2 3 . . 2 1 . . 1 1 . . . . . 1 . 1 1 . 1 . . 1 2 4 . 4 2 Engine 9 | 1 1 3 . . 2 1 . . 1 . . . . . . . . . . . . . . . . . . . . Core 8 | . 1 . . . . . . . . 1 . . . . . 1 . 1 . . . . . 1 1 2 . . . Reactor 11 | . . . . . . . . . . . . . . . . . . . 1 . 1 . . . 1 2 . 4 2 Propulsion 88 | 2 3 5 7 2 . 2 2 . 5 . . . . 3 1 4 . 4 . 4 . 4 9 7 5 2 3 5 9 Treads 49 | . . 4 . 2 . . 2 . 1 . . . . 2 . 2 . 1 . 3 . 1 6 4 5 2 3 5 6 Leg 19 | . 3 1 7 . . 2 . . 3 . . . . . . . . . . . . . . 1 . . . . 2 Wheel 19 | 2 . . . . . . . . 1 . . . . 1 1 2 . 3 . 1 . 3 3 2 . . . . . Hover . | . . . . . . . . . . . . . . . . . . . . . . . . . . . . . . Flight 1 | . . . . . . . . . . . . . . . . . . . . . . . . . . . . . 1 Utility 486 | 1 3 11 9 9 8 11 6 9 24 10 . 3 5 7 6 8 6 7 4 15 8 15 22 23 30 61 42 70 53 Device 324 | . . . . 4 4 7 3 6 15 7 . 2 4 2 3 5 3 2 2 10 4 10 19 8 16 45 35 62 46 Storage 38 | 1 3 5 2 . . . 3 . 2 1 . 1 . 4 1 . 1 4 . . 1 . . 2 1 3 . 1 2 Processor 10 | . . . . 1 . . . . 2 . . . . . 1 . . . . . . 1 1 2 . . . 1 1 Hackware 7 | . . . . 1 . . . . 1 . . . . . . 1 . . . . . . . . . 3 . . 1 Protection 107 | . . 6 7 3 4 4 . 3 4 2 . . 1 1 1 2 2 1 2 5 3 4 2 11 13 10 7 6 3 Artifact . | . . . . . . . . . . . . . . . . . . . . . . . . . . . . . . Weapon 190 | 2 5 7 4 5 12 8 5 6 16 4 4 . 3 1 5 . . 2 1 5 5 5 9 5 8 12 8 20 23 Energy Gun 21 | 1 2 3 . . . . . . . . . . . . . . . . . . 4 2 4 . . 1 3 . 1 Energy Cannon 32 | . . . . . 2 . . . . . . . . . . . . . . . . . . 1 . 4 4 7 14 Ballistic Gun 42 | 1 1 4 1 . . 4 1 2 11 1 1 . . . 2 . . 2 . 3 . . 2 . 2 1 . 1 2 Ballistic Cannon 27 | . . . . 3 5 2 . . . 2 2 . 1 1 2 . . . . . . . . . 4 4 . . 1 Launcher 29 | . . . . . 2 2 . 3 1 . . . 1 . . . . . . 2 . 3 1 4 . . . 8 2 Special Weapon . | . . . . . . . . . . . . . . . . . . . . . . . . . . . . . . Impact Weapon 4 | . 2 . . . . . 2 . . . . . . . . . . . . . . . . . . . . . . Slashing Weapon 26 | . . . 3 2 3 . 2 1 4 1 1 . 1 . 1 . . . 1 . 1 . 2 . 2 1 . . . Piercing Weapon 9 | . . . . . . . . . . . . . . . . . . . . . . . . . . 1 1 4 3 Special Melee Weapon . | . . . . . . . . . . . . . . . . . . . . . . . . . . . . . . Unidentified Prototypes 19 | . . 1 . . . . . . . . . . . . . 1 . . 3 . . . . 2 1 1 7 3 . Parts Lost 114 | . 8 7 6 . 2 9 . . . 1 . . . . 2 1 . . . 1 . 2 7 12 10 4 2 7 33 Power 14 | . 2 2 . . 1 1 . . . 1 . . . . . . . . . . . . . 1 2 . . 1 3 Propulsion 30 | . 3 2 2 . . 2 . . . . . . . . . . . . . 1 . . 3 4 4 . 2 . 7 Utility 39 | . . 1 4 . 1 3 . . . . . . . . 2 1 . . . . . 1 . 4 2 3 . 4 13 Weapon 31 | . 3 2 . . . 3 . . . . . . . . . . . . . . . 1 4 3 2 1 . 2 10 Highest Loss Streak 23 | . 3 2 3 . 2 9 . . . 1 . . . . 2 1 . . . 1 . 2 5 6 7 2 1 3 23 Average Slot Usage (%) 93 | . 96 99 100 100 99 95 100 100 98 92 93 91 86 82 86 87 88 87 92 93 88 93 90 92 90 89 87 86 78 Engine 3 | . 9 8 9 7 6 6 7 7 6 . . . . . . . . . . . . . . . . . . . . Core 1 | . 3 2 . . . . . . . 5 6 6 6 5 5 5 5 5 1 . . . . 1 4 3 4 . . Reactor 1 | . . . . . . . . . . . . . . . . . . . 3 5 5 5 5 3 . 4 4 7 4 Treads 8 | . . 16 1 3 15 . 1 15 4 . . . . 8 5 3 . . . 8 15 14 11 5 18 12 11 8 7 Leg 3 | . 11 5 16 11 . 14 13 . 8 . . . . . . . . . . . . . . . . . . . . Wheel 2 | . 16 . . . . . . . . 6 6 6 6 5 11 12 17 16 17 8 . . . 10 . . . . . Device 9 | . . . . 6 13 15 3 13 10 12 13 12 12 4 9 6 4 4 4 5 10 14 14 7 5 5 11 13 14 Storage 36 | . 27 31 36 38 38 38 57 46 39 33 33 32 26 25 28 29 29 29 41 41 36 36 35 33 32 31 23 21 18 Processor 5 | . . . . 7 7 . . . 11 13 13 13 13 8 5 . . . . . . 1 5 11 10 9 9 12 12 Hackware 2 | . . . . 1 . . . . . 6 6 6 6 5 5 8 11 10 5 5 5 2 . . . 8 9 5 6 Protection 4 | . . 12 17 6 1 2 . . 1 . . . . 3 . 5 5 6 3 4 4 6 4 5 11 3 1 6 2 Ballistic Gun 4 | . 6 14 2 . . 14 12 5 6 12 . . . . 6 11 11 11 6 6 2 . 2 2 . . . . 1 Ballistic Cannon 2 | . . . . 6 9 . . . . . 12 13 11 9 1 . . . . . . . . . 4 1 . . . Slashing Weapon 1 | . . . 15 7 1 . 1 1 3 . . . 1 1 1 . . . 3 2 1 . 2 2 . . . . . Naked Turns . | . . . . . . . . . . . . . . . . . . . . . . . . . . . . . . Heaviest Build 251 | 12 25 68 94 107 108 110 146 129 126 131 131 204 163 192 179 177 181 186 167 161 181 173 170 182 197 210 179 224 251 Greatest Support 150 | 20 20 40 40 44 44 44 40 40 40 28 28 28 28 44 44 48 48 48 48 117 117 122 126 108 110 130 130 150 150 Greatest Overweight (x) 7 | . 1 4 4 5 2 4 5 3 5 4 4 7 5 6 6 6 3 6 3 3 1 3 6 3 3 3 1 1 1 Average Overweight (x) 2 | . . 1 3 3 1 2 4 2 2 3 4 4 5 5 3 3 3 3 3 2 1 1 2 2 1 1 1 1 . Largest Inventory Capacity 68 | 6 12 24 34 34 34 34 52 40 40 36 36 56 42 48 48 48 54 68 48 48 48 48 48 48 48 50 44 40 42 Average Capacity 40 | 4 10 18 28 34 34 34 49 40 39 36 36 37 42 44 47 48 48 48 48 48 48 48 47 44 44 48 38 39 38 Most Carried 52 | 6 12 24 32 34 34 34 52 40 40 36 36 38 42 48 48 48 48 48 48 48 48 48 48 48 48 50 44 40 42 Average Carried 38 | 3 9 16 27 33 33 32 47 39 39 35 35 36 39 43 45 47 47 47 47 47 47 47 43 43 38 46 37 39 32 Final Capacity 48 | 6 12 22 34 34 34 34 40 40 36 36 36 42 42 48 48 48 48 48 48 48 48 48 40 48 48 44 38 40 4 Final Carried 48 | 6 12 22 32 33 34 34 40 40 36 36 36 36 42 46 48 48 48 45 48 48 48 43 39 44 48 44 38 37 3 Class Distribution -------------------- 73% | Hauler-Mutant 18% | Hauler-Skirmisher 4% | Mutant 3% | Hauler-Assassin Dominant Class ---------------- Mutant | -10/Materials Mutant | -9/Materials Hauler-Mutant | -8/Materials Hauler-Mutant | -7/Factory Hauler-Skirmisher | -7/Lower Caves Hauler-Mutant | -7/Lower Caves Hauler-Mutant | -7/Zion Hauler-Mutant | -6/Proximity Caves Hauler-Mutant | -6/Factory Hauler-Skirmisher | -6/Lower Caves Hauler-Skirmisher | -6/Lower Caves Hauler-Skirmisher | -6/Data Miner Hauler-Skirmisher | -5/Proximity Caves Hauler-Mutant | -5/Factory Hauler-Mutant | -5/Waste Hauler-Mutant | -5/Factory Hauler-Mutant | -5/Upper Caves Hauler-Mutant | -5/Upper Caves Hauler-Mutant | -5/Zhirov Hauler-Mutant | -4/Proximity Caves Hauler-Mutant | -4/Factory Hauler-Mutant | -4/Upper Caves Hauler-Mutant | -4/Upper Caves Hauler-Mutant | -4/Warlord Hauler-Mutant | -3/Proximity Caves Hauler-Mutant | -3/Research Hauler-Mutant | -3/Testing Hauler-Mutant | -2/Research Hauler-Gunner | -1/Access Resources | -11 -10 -9 -8 -7 -7 -7 -7 -6 -6 -6 -6 -6 -5 -5 -5 -5 -5 -5 -5 -4 -4 -4 -4 -4 -3 -3 -3 -2 -1 ----------- Run | Scr Mat Mat Mat Fac Low Low Zio Pro Fac Low Low Dat Pro Fac Was Fac Upp Upp Zhi Pro Fac Upp Upp War Pro Res Tes Res Acc Matter Collected 13986 | 260 153 352 268 49 567 327 144 288 520 389 66 . 128 41 364 135 220 190 80 514 76 303 589 1215 1624 1130 492 1612 1890 Remotely 5696 | . . . . . . 267 . . 236 . . . 21 . 344 . . . . 107 . 26 215 1026 610 524 75 1016 1229 Salvage Created 15828 | . 383 628 661 49 189 323 . 121 489 238 10 . 46 41 . 124 306 140 327 426 76 246 223 789 1207 1671 974 2853 3288 Parts 630 | . 20 37 35 . 14 10 . 7 19 8 4 . 6 . . 5 10 11 5 30 4 7 8 21 45 84 45 92 103 Haulers Intercepted 2 | . 1 . . . . . . . . . . . . . . . . . . . . . . . . . . . 1 Recyclers Shooed 4 | . 1 . . . . . . . . . . . . . . . . . . . . . . . . 1 . . 2 Parts Field Recycled . | . . . . . . . . . . . . . . . . . . . . . . . . . . . . . . Retrieved Matter . | . . . . . . . . . . . . . . . . . . . . . . . . . . . . . . Parts Self-Destructed 252 | . . . . . 11 7 1 19 . 8 . . 3 . . . 19 14 5 27 . 6 7 77 48 . . . . Prevented 16 | . . . . . . . . . . . . . . . . . 4 . . . . . . 12 . . . . . Kills | -11 -10 -9 -8 -7 -7 -7 -7 -6 -6 -6 -6 -6 -5 -5 -5 -5 -5 -5 -5 -4 -4 -4 -4 -4 -3 -3 -3 -2 -1 ------- Run | Scr Mat Mat Mat Fac Low Low Zio Pro Fac Low Low Dat Pro Fac Was Fac Upp Upp Zhi Pro Fac Upp Upp War Pro Res Tes Res Acc Combat Hostiles Destroyed 329 | . 8 18 12 2 10 16 . 3 9 4 1 . 4 1 . . 3 2 . 11 1 10 7 39 23 26 13 54 52 Melee 20 | . 3 1 12 . 2 . . . . . . . . . . . . . . . . . 1 . 1 . . . . Guns 63 | . 3 17 . . . 2 . 2 6 4 . . . . . . 3 2 . 4 1 4 4 . 5 3 . . 3 Cannons 99 | . . . . 2 4 1 . . . . 1 . . 1 . . . . . . . . . 2 17 14 9 16 32 AOE 113 | . . . . . 4 13 . 1 3 . . . 4 . . . . . . 7 . 6 1 37 . . . 21 16 Classes Destroyed 24 | . 2 3 2 1 . 1 . . 1 1 1 . . . . . . . . . . 1 . 5 1 2 1 1 1 Worker 6 | . . . 1 . . . . . . . . . . . . . . . . . . . . . . . 1 . 4 Builder 7 | . . . . . . . . . . . . . . . . . . . . . . . . . . 1 . . 6 Hauler 2 | . 1 . . . . . . . . . . . . . . . . . . . . . . . . . . . 1 Recycler 4 | . . . . . . . . . 2 . . . . . . 1 . . . . . . . . . 1 . . . Minesweeper 3 | . . . . . . . . . . . . . . . . . . . . . . . . . 3 . . . . Mechanic 1 | . . . . . . 1 . . . . . . . . . . . . . . . . . . . . . . . Watcher 4 | . . . . . . . . . . . . . . . . . . . . . . . . . . 1 . 1 2 Swarmer 55 | . . 7 . . 8 7 . . 4 . . . 4 . . . . . . 4 . 3 . 1 4 4 . 9 . Saboteur 6 | . . . . . . . . . . . . . . . . . . . . . . . . 3 1 . . . 2 Grunt 127 | . 8 5 10 . . 5 . . . 3 . . . . . . 2 . . 4 . 6 . 13 14 6 3 23 25 Brawler 5 | . . . . . . . . . . . . . . . . . . . . . . 1 . 1 1 . . 1 1 Duelist 10 | . . 1 . . . 3 . . . . . . . . . . . . . . . . . . 1 . . 3 2 Protector 1 | . . . . . . . . . . . . . . . . . . . . . . . . . . . . 1 . Sentry 34 | . . 5 1 1 1 1 . 1 3 . . . . 1 . . 1 . . 1 1 . . . 1 3 . 11 2 Demolisher 3 | . . . . . . . . . . . . . . . . . . . . . . . . . . . . 3 . Specialist 1 | . . . . . . . . . . . . . . . . . . . . . . . . 1 . . . . . Hunter 28 | . . . 1 . 1 . . 2 . . . . . . . . . 2 . 2 . . 4 2 . 2 2 . 10 Programmer 45 | . . . . 1 . . . . 2 . . . . . . . . . . . . . 3 11 . 11 7 . 10 Behemoth 3 | . . . . . . . . . . . . . . . . . . . . . . . . 2 1 . . . . Investigator 1 | . . . . . . . . . . . . . . . . . . . . . . . . . . . . . 1 Striker 5 | . . . . . . . . . . . . . . . . . . . . . . . . 3 . . . 2 . Executioner 3 | . . . . . . . . . . . . . . . . . . . . . . . . 2 . . . 1 . Protovariant D 1 | . . . . . . . . . . . . . . . . . . . . . . . . . . . 1 . . Packrat 1 | . . . . . . . . . . . . . . . . . . . . . . . . . 1 . . . . Thief 1 | . . . . . . . . . . . 1 . . . . . . . . . . . . . . . . . . Thug 2 | . . . . . . . . . . . . . . . . . 1 . . . . . . 1 . . . . . Mutant 1 | . . . . . . . . . . 1 . . . . . . . . . . . . . . . . . . . Best Kill Streak 20 | . 2 5 3 1 2 17 . 1 5 3 1 . 4 1 . 1 1 2 . 4 1 7 4 18 8 4 3 8 20 Combat Bots Only 18 | . 2 5 3 1 2 16 . 1 4 3 1 . 4 1 . . 1 2 . 4 1 7 4 18 8 4 3 8 14 Max Kills in Single Turn 5 | . 1 1 1 1 2 3 . 1 3 1 1 . 3 1 . 1 1 1 . 2 1 2 1 3 1 1 1 5 3 Gunslinging . | . . . . . . . . . . . . . . . . . . . . . . . . . . . . . . Exploded 5 | . . . . . 2 3 . 1 3 . . . 3 . . . . . . 2 . 2 1 3 . . . 5 2 Melee 1 | . 1 1 1 . 1 . . . . . . . . . . . . . . . . . 1 . 1 . . . . Uniques/NPCs Destroyed . | . . . . . . . . . . . . . . . . . . . . . . . . . . . . . . Combat | -11 -10 -9 -8 -7 -7 -7 -7 -6 -6 -6 -6 -6 -5 -5 -5 -5 -5 -5 -5 -4 -4 -4 -4 -4 -3 -3 -3 -2 -1 -------- Run | Scr Mat Mat Mat Fac Low Low Zio Pro Fac Low Low Dat Pro Fac Was Fac Upp Upp Zhi Pro Fac Upp Upp War Pro Res Tes Res Acc Damage Taken 39035 | . 745 1559 1408 238 840 1432 . 419 631 446 . . 142 95 246 134 95 643 . 1174 111 1319 1903 3722 4195 3078 1030 2676 10754 Core 3724 | . 200 295 181 23 162 207 . 101 70 40 . . 32 . 55 . . 23 . 121 . 92 134 350 202 177 19 49 1191 Absorbed by Shields 1739 | . . . . . . . . . . . . . . . . . . . . . . . . . . . . 675 1064 Reduced by Siege Mode 938 | . . . . . . . . . . . . . . . . . . 27 . 10 . 41 102 . . 215 37 61 445 Core Remaining (%) 57 | 100 20 26 67 . . . . 29 . . . . 83 . . . . . . 80 . . . . 32 . 84 96 19 Volleys Fired 771 | . 17 66 . 9 12 15 . 8 19 13 2 . 2 3 14 2 14 9 . 26 4 15 34 43 89 82 38 135 100 Largest 4 | . 2 2 . 2 2 2 . 2 2 2 2 . 1 2 2 2 2 2 . 2 2 2 2 2 2 1 1 2 4 Hottest 473 | . 90 90 . 88 130 88 . 78 56 56 114 . 39 114 66 66 66 66 . 66 176 176 176 88 90 110 113 120 473 Shots Fired 1155 | . 26 115 . 18 21 21 . 15 37 26 4 . 2 6 19 4 28 18 . 41 8 23 61 68 98 82 38 138 238 Gun 446 | . 26 115 . . . 3 . 12 36 26 1 . . . 10 4 28 18 . 30 8 16 56 . 20 17 . 1 19 Cannon 565 | . . . . 18 18 9 . . . . 3 . . 6 9 . . . . . . . . 5 78 65 38 112 204 Launcher 144 | . . . . . 3 9 . 3 1 . . . 2 . . . . . . 11 . 7 5 63 . . . 25 15 Special . | . . . . . . . . . . . . . . . . . . . . . . . . . . . . . . Kinetic 503 | . 12 89 . 18 16 12 . 12 36 26 4 . . 6 19 4 28 18 . 30 . . 6 . 98 28 . 1 40 Thermal 380 | . 14 26 . . 2 . . . . . . . . . . . . . . . 8 16 50 . . 30 19 38 177 Explosive 144 | . . . . . 3 9 . 3 1 . . . 2 . . . . . . 11 . 7 5 63 . . . 25 15 Electromagnetic 123 | . . . . . . . . . . . . . . . . . . . . . . . . 5 . 24 19 74 1 Entropic 5 | . . . . . . . . . . . . . . . . . . . . . . . . . . . . . 5 Robot Hit Streak 41 | . 8 14 . 7 10 17 . 5 12 12 2 . 4 10 7 8 6 11 . 9 3 17 25 9 17 34 25 41 39 Robot Miss Streak 6 | . 3 3 . 6 5 3 . 2 4 6 1 . . . 3 1 3 1 . 2 1 1 4 2 2 1 2 2 2 Penetration Max 2 | . . . . . . . . . . . . . . . 1 1 1 . . . . . . . 1 . . . 2 Secondary Targets 7 | . . 1 . . . . . . . 1 . . . . . . . 1 . . . 2 . . 1 . . . 1 Max Gunslinging Chain 1 | . . 1 . . . . . . . 1 . . . . . . . 1 . . . 1 . . 1 . . . 1 Capacitor 150 | . . . . . . . . . . . . . . . . . . . . . . . . 4 . . 38 105 3 Shots Hit Robots 979 | . 46 98 45 17 23 16 . 11 35 30 2 . 2 6 13 2 18 16 5 25 5 19 44 28 74 70 35 118 176 Core Hits 752 | . 13 28 18 11 23 34 . 6 31 36 1 . 4 2 1 1 7 7 3 28 3 27 15 110 37 28 14 115 149 Critical Hits 113 | . . 2 1 . . . . . . . . . . . 6 3 12 5 . 9 . 4 5 2 14 11 4 10 25 Critical Kills 38 | . . 1 1 . . . . . . . . . . . . 1 4 2 . 4 . 2 2 2 7 5 2 1 4 Critical Parts Destroyed 61 | . . 1 . . . . . . . . . . . . 1 2 6 3 . 5 . 2 3 . 6 6 2 7 17 Melee Attacks 374 | . 43 31 73 6 19 . 89 1 18 7 2 . 1 . 6 . . . 5 5 1 . 2 1 6 6 21 27 4 Impact 100 | . 43 31 . . . . 26 . . . . . . . . . . . . . . . . . . . . . . Slashing 220 | . . . 73 6 19 . 63 1 18 7 2 . 1 . 6 . . . 5 5 1 . 2 1 6 4 . . . Piercing 54 | . . . . . . . . . . . . . . . . . . . . . . . . . . 2 21 27 4 Sneak Attacks 7 | . . . 3 1 . . . . . . . . . . . . . . . . . . . . 1 1 1 . . Combat Hostiles 1 | . . . 1 . . . . . . . . . . . . . . . . . . . . . . . . . . Follow-up Attacks 20 | . 8 4 7 . 1 . . . . . . . . . . . . . . . . . . . . . . . . Damage Inflicted 58262 | . 718 1304 1627 365 810 1865 . 417 1192 718 33 . 317 213 206 32 138 68 728 1378 132 1761 1562 8720 4733 4055 1811 9752 13607 Guns 5959 | . 192 1019 . . . 49 . 164 786 526 . . . . 83 32 138 68 . 100 132 389 890 . 166 568 . 26 631 Cannons 22532 | . . . . 263 304 193 . . . . 33 . . 213 123 . . . . . . . . 165 4347 3282 1674 3824 8111 Explosions 25391 | . . . . . 280 1613 . 253 406 . . . 317 . . . . . . 1278 . 1372 624 8555 . . . 5902 4791 Melee 4290 | . 526 285 1627 102 226 . . . . 192 . . . . . . . . 728 . . . 48 . 220 199 137 . . Ramming 90 | . . . . . . 10 . . . . . . . . . . . . . . . . . . . 6 . . 74 Kinetic 13102 | . 84 841 . 263 250 242 . 164 786 526 33 . . 213 206 32 138 68 . 100 . . 16 . 4513 1748 . 26 2853 Thermal 11203 | . 108 178 . . 54 . . . 135 . . . . . . . . . . . 132 658 874 54 . 1019 976 1345 5670 Explosive 24916 | . . . . . 280 1613 . 253 271 . . . 317 . . . . . . 1278 . 1103 624 8501 . . . 5902 4774 Electromagnetic 4455 | . . . . . . . . . . . . . . . . . . . . . . . . 165 . 1083 698 2479 30 Impact 811 | . 526 285 . . . . . . . . . . . . . . . . . . . . . . . . . . . Slashing 3143 | . . . 1627 102 226 . . . . 192 . . . . . . . . 728 . . . 48 . 220 . . . . Piercing 336 | . . . . . . . . . . . . . . . . . . . . . . . . . . 199 137 . . Entropic 206 | . . . . . . . . . . . . . . . . . . . . . . . . . . . . . 206 Highest Corruption 6 | . . . . . . . . . . . . . . . . 2 . . . . . 2 2 2 2 6 2 . 5 Average Corruption 2 | . . . . . . . . . . . . . . . . 1 . . . . . 1 1 1 1 3 1 . 3 Corruption Purged 28 | . . . . . . . . . . . . . . . . 2 . . . . . 2 2 . 2 13 6 . 1 Effects 48 | . . . . . . . . . . . . . . . . 4 . . . . . 3 2 1 2 10 . . 26 Message Errors 9 | . . . . . . . . . . . . . . . . . . . . . . 2 1 . . 3 . . 3 Matter Fused 6 | . . . . . . . . . . . . . . . . . . . . . . . . . . 3 . . 3 Heat Flow Errors 7 | . . . . . . . . . . . . . . . . 2 . . . . . 1 1 . 1 1 . . 1 Energy Discharges 4 | . . . . . . . . . . . . . . . . 1 . . . . . . . . . 1 . . 2 Parts Rejected 1 | . . . . . . . . . . . . . . . . . . . . . . . . . . . . . 1 Data Loss (minor) 6 | . . . . . . . . . . . . . . . . 1 . . . . . . . . 1 1 . . 3 Data Loss (major) 1 | . . . . . . . . . . . . . . . . . . . . . . . . . . . . . 1 Targeting Errors 12 | . . . . . . . . . . . . . . . . . . . . . . . . 1 . 1 . . 10 Weapon Failures 2 | . . . . . . . . . . . . . . . . . . . . . . . . . . . . . 2 Overload Shots . | . . . . . . . . . . . . . . . . . . . . . . . . . . . . . . Overflow Damage 2181 | . 17 9 81 77 87 73 . . 17 . . . 39 . . . . . . 40 . 163 36 230 405 162 103 289 353 Projectiles 896 | . . . . . . . . . . . . . . . . . . . . . . . . . 405 162 41 84 204 Explosions 1018 | . . . . . 66 73 . . 17 . . . 39 . . . . . . 40 . 163 36 230 . . . 205 149 Melee 267 | . 17 9 81 77 21 . . . . . . . . . . . . . . . . . . . . . 62 . . Knockbacks 53 | . 2 . . . 2 . . . . . . . . . . . . . . . . . . . 19 9 . . 21 Impact 2 | . 2 . . . . . . . . . . . . . . . . . . . . . . . . . . . . Kinetic 41 | . . . . . 2 . . . . . . . . . . . . . . . . . . . 19 7 . . 13 Secondary 10 | . . . . . . . . . . . . . . . . . . . . . . . . . . 2 . . 8 Self-Inflicted Damage 949 | . . . . . 59 120 . . . . . . . . . . . . . 90 . 286 40 47 . . . . 307 Shots 25 | . . . . . 2 4 . . . . . . . . . . . . . 3 . 5 4 1 . . . . 6 Rammed 8 | . . . . . . 1 . . . . . . . . . . . . . . . . . . . . . . 7 Targets Rammed 18 | . . . . . . 1 . . . . . . . . . . . . . . . . . . . 1 . . 16 Kicked 9 | . . . . . . . . . . . . . . . . . . . . . . . . . . . . . 9 Crushed 1 | . . . . . . . . . . . . . . . . . . . . . . . . . . 1 . . . Highest Temperature 485 | . 255 459 1 216 144 177 . 12 9 4 27 . . 162 . 227 21 84 . 189 9 175 221 207 273 242 358 314 485 Average Temperature 94 | . 116 157 1 88 45 77 . 8 8 2 18 . . 86 . 108 21 36 . 55 9 64 96 103 82 48 127 94 124 Received Heat Transfer 5486 | . 429 375 558 42 54 360 . 15 102 216 . . . 18 . . 21 . . 147 18 192 . 261 759 123 57 290 1449 Effects 8 | . . 3 . . . . . . . . . . . . . . . . . . . . . . 2 3 . . . Shutdowns 2 | . . 2 . . . . . . . . . . . . . . . . . . . . . . . . . . . Energy Bleed 2 | . . . . . . . . . . . . . . . . . . . . . . . . . 2 . . . . Interference 3 | . . . . . . . . . . . . . . . . . . . . . . . . . . 3 . . . Short Circuit 1 | . . 1 . . . . . . . . . . . . . . . . . . . . . . . . . . . Siege Activations 34 | . . . . . . . . . . . . . . . . . . 1 . 3 . 2 2 . . 7 4 7 8 Total Turns 450 | . . . . . . . . . . . . . . . . . . 18 . 43 . 37 50 . . 113 39 59 91 Longest Duration 40 | . . . . . . . . . . . . . . . . . . 18 . 23 . 19 40 . . 29 20 22 25 Robots Corrupted 31 | . . . . . . . . . . . . . . . . . . . . . . . . . . 10 4 17 . Combat Hostiles 30 | . . . . . . . . . . . . . . . . . . . . . . . . . . 9 4 17 . Parts Fried 40 | . 3 1 . . . . . . . . . . . . . . 1 . . . . . . 1 . 13 3 18 . Impact Corruptions 8 | . 3 2 . . . . . . . . . . . . . . . . . . . . . . . 1 . . 2 Robots Melted 2 | . . . . . . . . . . . . . . . . . . . . . . . 1 . . . . . 1 Combat Hostiles 2 | . . . . . . . . . . . . . . . . . . . . . . . 1 . . . . . 1 Parts Melted 30 | . . 1 . . . . . . . . . . . . . . . . . . 2 . 4 . . 1 4 2 16 Heat Transferred 10579 | . 272 459 . . 74 . . . 100 . . . . . . . . . . . 185 875 1147 50 . 670 666 1147 4934 Parts Sabotaged 1 | . . . . . . . . . . . . . . . . . . . . . . . . . . . . . 1 Parts Stolen 1 | . . . . . . . . . . . 1 . . . . . . . . . . . . . . . . . . Parts Stripped . | . . . . . . . . . . . . . . . . . . . . . . . . . . . . . . Power Chain Reactions 1 | . . . . . . . . . . . . . . . . . . . . . . . . 1 . . . . . Missiles Intercepted . | . . . . . . . . . . . . . . . . . . . . . . . . . . . . . . Alert | -11 -10 -9 -8 -7 -7 -7 -7 -6 -6 -6 -6 -6 -5 -5 -5 -5 -5 -5 -5 -4 -4 -4 -4 -4 -3 -3 -3 -2 -1 ------- Run | Scr Mat Mat Mat Fac Low Low Zio Pro Fac Low Low Dat Pro Fac Was Fac Upp Upp Zhi Pro Fac Upp Upp War Pro Res Tes Res Acc Peak Influence 2826 | . 163 262 263 74 . . . . 234 . . . . 47 85 390 . . . . 70 . . . . 286 285 1876 2826 Initial 1125 | . . 8 90 74 . . . . . . . . . . 16 . . . . . 8 . . . . 60 39 148 1125 Average 332 | . 58 109 102 34 . . . . 105 . . . . 34 29 289 . . . . 26 . . . . 95 139 893 1900 Maximum Alert Level 5 | . . 1 1 . . . . . 1 . . . . . . 1 . . . . . . . . . 1 1 5 5 Low Security (%) 67 | 100 100 78 81 100 . . . . 81 . . . . 100 100 33 . . . . 100 . . . . 93 71 5 . Level 1 12 | . . 21 18 . . . . . 18 . . . . . . 66 . . . . . . . . . 6 28 8 . Level 2 4 | . . . . . . . . . . . . . . . . . . . . . . . . . . . . 26 . Level 3 3 | . . . . . . . . . . . . . . . . . . . . . . . . . . . . 25 . Level 4 5 | . . . . . . . . . . . . . . . . . . . . . . . . . . . . 23 23 Level 5 2 | . . . . . . . . . . . . . . . . . . . . . . . . . . . . 2 39 High Security 3 | . . . . . . . . . . . . . . . . . . . . . . . . . . . . 7 37 Max Security . | . . . . . . . . . . . . . . . . . . . . . . . . . . . . . . Squads Dispatched 34 | . . 1 . 2 . 1 . . 2 . . . . . . . . . . . . . . . 1 4 3 1 19 Investigation 3 | . . . . . . . . . . . . . . . . . . . . . . . . . . . . 1 2 Extermination 11 | . . . . 2 . . . . 2 . . . . . . . . . . . . . . . . 4 2 . 1 Reinforcement 4 | . . 1 . . . . . . . . . . . . . . . . . . . . . . . . 1 . 2 Assault 13 | . . . . . . 1 . . . . . . . . . . . . . . . . . . 1 . . . 11 Garrison 3 | . . . . . . . . . . . . . . . . . . . . . . . . . . . . . 3 Intercept . | . . . . . . . . . . . . . . . . . . . . . . . . . . . . . . Construction Impeded 1 | . . . . . . . . . . . . . . . . . . . . . . . . . . . . . 1 Haulers Reinforced 1 | . . . . . . . . . . . . . . . . . . . . . . . . . . . . . 1 Stealth | -11 -10 -9 -8 -7 -7 -7 -7 -6 -6 -6 -6 -6 -5 -5 -5 -5 -5 -5 -5 -4 -4 -4 -4 -4 -3 -3 -3 -2 -1 --------- Run | Scr Mat Mat Mat Fac Low Low Zio Pro Fac Low Low Dat Pro Fac Was Fac Upp Upp Zhi Pro Fac Upp Upp War Pro Res Tes Res Acc Distress Signals 18 | . . 2 2 . . . . . . . . . . . . . . . . . . . . . . 4 . 4 6 Communications Jammed 59 | . . . . . . . . . 4 . . . . . . . . . . . . . . . . 3 35 . 17 Distress Signals 58 | . . . . . . . . . 4 . . . . . . . . . . . . . . . . 3 35 . 16 Times Spotted 533 | . 9 24 27 2 10 24 . 9 11 5 1 . 4 1 6 8 9 2 . 13 2 14 8 51 31 33 19 66 144 Peak Tracking Total 40 | . 2 5 5 1 4 15 . 4 7 3 1 . 4 1 6 3 6 2 . 5 1 7 3 13 10 6 5 12 40 Tactical Retreats 44 | . . 5 4 . 1 5 . 1 . . . . . . . . . . . 2 . 3 1 2 7 2 . 5 6 Traps | -11 -10 -9 -8 -7 -7 -7 -7 -6 -6 -6 -6 -6 -5 -5 -5 -5 -5 -5 -5 -4 -4 -4 -4 -4 -3 -3 -3 -2 -1 ------- Run | Scr Mat Mat Mat Fac Low Low Zio Pro Fac Low Low Dat Pro Fac Was Fac Upp Upp Zhi Pro Fac Upp Upp War Pro Res Tes Res Acc Traps Triggered 11 | . . 1 . . . . . . . . . . . 1 . 1 . . . . 1 . . . . . 2 . 5 Indirectly . | . . . . . . . . . . . . . . . . . . . . . . . . . . . . . . Trap Hack Attempts . | . . . . . . . . . . . . . . . . . . . . . . . . . . . . . . Triggered . | . . . . . . . . . . . . . . . . . . . . . . . . . . . . . . Disarmed . | . . . . . . . . . . . . . . . . . . . . . . . . . . . . . . Reprogrammed . | . . . . . . . . . . . . . . . . . . . . . . . . . . . . . . Reused 6 | . . . . . . . . . . . . . . . . . . . . . . . . . 2 4 . . . Traps Extracted . | . . . . . . . . . . . . . . . . . . . . . . . . . . . . . . Installed 15 | . . . . . . . . . . . . . . . . . . . . . . . . . 8 7 . . . Triggered 21 | . . . . . . . . . . . . . . . . . 1 . . . . . . 14 2 4 . . . Machines | -11 -10 -9 -8 -7 -7 -7 -7 -6 -6 -6 -6 -6 -5 -5 -5 -5 -5 -5 -5 -4 -4 -4 -4 -4 -3 -3 -3 -2 -1 ---------- Run | Scr Mat Mat Mat Fac Low Low Zio Pro Fac Low Low Dat Pro Fac Was Fac Upp Upp Zhi Pro Fac Upp Upp War Pro Res Tes Res Acc Machines Disabled 21 | . . . . . . 1 . 1 3 1 . . . . . . . . . . . 4 . . . . 7 2 2 Max in Single Turn 3 | . . . . . . 1 . 1 3 1 . . . . . . . . . . . 3 . . . . 1 1 1 Garrison Access 4 | . . . . . . . . . . . . . . . . . . . . . . . . . . . . 4 . Energy Cycler 1 | . . . . . . . . . . . . . . . . . . . . . . . . . . . . . 1 Machines Sabotaged . | . . . . . . . . . . . . . . . . . . . . . . . . . . . . . . Garrisons Compromised . | . . . . . . . . . . . . . . . . . . . . . . . . . . . . . . Overloaded Fab Kills . | . . . . . . . . . . . . . . . . . . . . . . . . . . . . . . Fab Network Shutdowns . | . . . . . . . . . . . . . . . . . . . . . . . . . . . . . . Hacking | -11 -10 -9 -8 -7 -7 -7 -7 -6 -6 -6 -6 -6 -5 -5 -5 -5 -5 -5 -5 -4 -4 -4 -4 -4 -3 -3 -3 -2 -1 --------- Run | Scr Mat Mat Mat Fac Low Low Zio Pro Fac Low Low Dat Pro Fac Was Fac Upp Upp Zhi Pro Fac Upp Upp War Pro Res Tes Res Acc Machines Accessed 58 | . 3 6 4 2 1 1 . . 5 1 . 4 . . . 3 . . 9 . 1 . . 1 . 7 5 4 1 Terminals 30 | . 3 5 4 2 1 . . . 4 . . . . . . 2 . . . . . . . . . 4 4 1 . Fabricators 3 | . . . . . . . . . 1 . . . . . . 1 . . . . . . . . . 1 . . . Repair Stations . | . . . . . . . . . . . . . . . . . . . . . . . . . . . . . . Recycling Units . | . . . . . . . . . . . . . . . . . . . . . . . . . . . . . . Scanalyzers 4 | . . 1 . . . . . . . . . . . . . . . . . . 1 . . . . 1 1 . . Garrison Access 5 | . . . . . . . . . . . . . . . . . . . . . . . . . . 1 . 3 1 Total Hacks 212 | . 8 19 13 4 1 1 . . 14 1 . 26 . . . 18 . . 48 . 3 . . 1 . 25 18 10 2 Successful 143 | . 5 9 6 2 1 1 . . 9 1 . 26 . . . 7 . . 48 . 3 . . 1 . 11 8 5 . Failed 69 | . 3 10 7 2 . . . . 5 . . . . . . 11 . . . . . . . . . 14 10 5 2 Catastrophic 13 | . . . 2 . . . . . 1 . . . . . . 3 . . . . . . . . . 4 . 2 1 Database Lockouts . | . . . . . . . . . . . . . . . . . . . . . . . . . . . . . . Manual 89 | . 6 16 11 1 . . . 1 11 . . . . . . 14 . . . . . . . 1 . 10 13 4 1 Terminals 98 | . 8 17 13 4 1 . . . 12 . . . . . . 9 . . . . . . . . . 13 17 4 . Fabricators 14 | . . . . . . . . . 2 . . . . . . 9 . . . . . . . . . 3 . . . Repair Stations . | . . . . . . . . . . . . . . . . . . . . . . . . . . . . . . Recycling Units . | . . . . . . . . . . . . . . . . . . . . . . . . . . . . . . Scanalyzers 14 | . . 2 . . . . . . . . . . . . . . . . . . 3 . . . . 8 1 . . Garrison Access 9 | . . . . . . . . . . . . . . . . . . . . . . . . . . 1 . 6 2 Terminal Hacks 99 | . 2 2 4 1 1 1 . . 3 1 . 26 . . . 2 . . 48 . . . . 1 . 3 3 1 . Record 48 | . . . . . 1 . . . . . . 11 . . . . . . 36 . . . . . . . . . . Part Schematic 12 | . . 1 . . . . . . . . . 7 . . . . . . 4 . . . . . . . . . . Robot Schematic 5 | . . . . . . . . . . . . 5 . . . . . . . . . . . . . . . . . Robot Analysis 5 | . . . . . . . . . 1 . . . . . . . . . 4 . . . . . . . . . . Prototype ID Bank 7 | . . . . . . . . . . . . 3 . . . . . . 4 . . . . . . . . . . Open Door 3 | . . . . . . 1 . . . 1 . . . . . . . . . . . . . 1 . . . . . Branch Access Points 4 | . . . . 1 . . . . 1 . . . . . . 1 . . . . . . . . . 1 . . . Terminal Index 2 | . . . . . . . . . . . . . . . . 1 . . . . . . . . . . 1 . . Alert Level 3 | . . . . . . . . . 1 . . . . . . . . . . . . . . . . . 1 1 . Unreport Threat 5 | . . . 2 . . . . . . . . . . . . . . . . . . . . . . 2 1 . . Registered Components 1 | . 1 . . . . . . . . . . . . . . . . . . . . . . . . . . . . Zone Layout 4 | . 1 1 2 . . . . . . . . . . . . . . . . . . . . . . . . . . Fabricator Hacks 8 | . . . . . . . . . 2 . . . . . . 3 . . . . . . . . . 3 . . . Load Schematic 4 | . . . . . . . . . 1 . . . . . . 2 . . . . . . . . . 1 . . . Build 4 | . . . . . . . . . 1 . . . . . . 1 . . . . . . . . . 2 . . . Repair Station Hacks . | . . . . . . . . . . . . . . . . . . . . . . . . . . . . . . Recycling Unit Hacks . | . . . . . . . . . . . . . . . . . . . . . . . . . . . . . . Scanalyzer 10 | . . 2 . . . . . . . . . . . . . . . . . . 3 . . . . 4 1 . . Insert Component 7 | . . 1 . . . . . . . . . . . . . . . . . . 3 . . . . 2 1 . . Analyze 3 | . . 1 . . . . . . . . . . . . . . . . . . . . . . . 2 . . . Garrison Access Hacks 2 | . . . . . . . . . . . . . . . . . . . . . . . . . . . . 2 . Seal Access 2 | . . . . . . . . . . . . . . . . . . . . . . . . . . . . 2 . Unauthorized Hacks 24 | . 3 5 2 1 . . . . 4 . . . . . . 2 . . . . . . . . . 1 4 2 . Terminals 22 | . 3 5 2 1 . . . . 4 . . . . . . 1 . . . . . . . . . 1 4 1 . Track 9 | . 1 4 2 . . . . . 1 . . . . . . . . . . . . . . . . . 1 . . Botnet 13 | . 2 1 . 1 . . . . 3 . . . . . . 1 . . . . . . . . . 1 3 1 . Fabricators 1 | . . . . . . . . . . . . . . . . 1 . . . . . . . . . . . . . Prioritize 1 | . . . . . . . . . . . . . . . . 1 . . . . . . . . . . . . . Repair Stations . | . . . . . . . . . . . . . . . . . . . . . . . . . . . . . . Recycling Units . | . . . . . . . . . . . . . . . . . . . . . . . . . . . . . . Scanalyzers . | . . . . . . . . . . . . . . . . . . . . . . . . . . . . . . Garrison Access 1 | . . . . . . . . . . . . . . . . . . . . . . . . . . . . 1 . Jam 1 | . . . . . . . . . . . . . . . . . . . . . . . . . . . . 1 . Data Cores Recovered . | . . . . . . . . . . . . . . . . . . . . . . . . . . . . . . Used . | . . . . . . . . . . . . . . . . . . . . . . . . . . . . . . Hacking Detections 37 | . 3 5 4 2 . . . . 5 . . . . . . 3 . . . . 1 . . . . 7 4 2 1 Full Trace Events 1 | . . . . . . . . . . . . . . . . . . . . . . . . . . . . . 1 Feedback Events 1 | . . . . . . . . . . . . . . . . . . . . . . . . . . . . . 1 Corruption 1 | . . . . . . . . . . . . . . . . . . . . . . . . . . . . . 1 Feedback Blocked . | . . . . . . . . . . . . . . . . . . . . . . . . . . . . . . Robot Schematics Acquired 5 | . . . . . . . . . . . . 5 . . . . . . . . . . . . . . . . . Robots Built . | . . . . . . . . . . . . . . . . . . . . . . . . . . . . . . Matter . | . . . . . . . . . . . . . . . . . . . . . . . . . . . . . . Time . | . . . . . . . . . . . . . . . . . . . . . . . . . . . . . . Total Robot Build Rating . | . . . . . . . . . . . . . . . . . . . . . . . . . . . . . . Part Schematics Acquired 15 | . . 2 . . . . . . . . . 7 . . . . . . 4 . . . . . . 2 . . . Parts Built 4 | . . . . . . . . . 1 . . . . . . 1 . . . . . . . . . 2 . . . Matter 591 | . . . . . . . . . 102 . . . . . . 285 . . . . . . . . . 204 . . . Time 253 | . . . . . . . . . 51 . . . . . . 152 . . . . . . . . . 50 . . . Total Part Build Rating 8 | . . . . . . . . . 1 . . . . . . 5 . . . . . . . . . 2 . . . Parts Repaired . | . . . . . . . . . . . . . . . . . . . . . . . . . . . . . . Time . | . . . . . . . . . . . . . . . . . . . . . . . . . . . . . . Parts Recycled . | . . . . . . . . . . . . . . . . . . . . . . . . . . . . . . Recycled Matter . | . . . . . . . . . . . . . . . . . . . . . . . . . . . . . . Retrieved Matter . | . . . . . . . . . . . . . . . . . . . . . . . . . . . . . . Retrieved Components . | . . . . . . . . . . . . . . . . . . . . . . . . . . . . . . Parts Scanalyzed 3 | . . 1 . . . . . . . . . . . . . . . . . . . . . . . 2 . . . Part Schematics Acquired 3 | . . 1 . . . . . . . . . . . . . . . . . . . . . . . 2 . . . Parts Damaged . | . . . . . . . . . . . . . . . . . . . . . . . . . . . . . . Bothacking | -11 -10 -9 -8 -7 -7 -7 -7 -6 -6 -6 -6 -6 -5 -5 -5 -5 -5 -5 -5 -4 -4 -4 -4 -4 -3 -3 -3 -2 -1 ------------ Run | Scr Mat Mat Mat Fac Low Low Zio Pro Fac Low Low Dat Pro Fac Was Fac Upp Upp Zhi Pro Fac Upp Upp War Pro Res Tes Res Acc Used RIF Installer . | . . . . . . . . . . . . . . . . . . . . . . . . . . . . . . Robots Hacked . | . . . . . . . . . . . . . . . . . . . . . . . . . . . . . . Non-combat . | . . . . . . . . . . . . . . . . . . . . . . . . . . . . . . Combat . | . . . . . . . . . . . . . . . . . . . . . . . . . . . . . . Robot Hacks Applied . | . . . . . . . . . . . . . . . . . . . . . . . . . . . . . . Relay Couplers Released 1 | . . . . . . . . . . . . . . . . . . . . . . . . . . . . 1 . Machine Destruction 1 | . . . . . . . . . . . . . . . . . . . . . . . . . . . . 1 . Robots Rewired 4 | . . . . . . 2 . . . . . . . . . . . . . . . . . . 2 . . . . Allies Hacked . | . . . . . . . . . . . . . . . . . . . . . . . . . . . . . . Hacks Repelled . | . . . . . . . . . . . . . . . . . . . . . . . . . . . . . . Allies | -11 -10 -9 -8 -7 -7 -7 -7 -6 -6 -6 -6 -6 -5 -5 -5 -5 -5 -5 -5 -4 -4 -4 -4 -4 -3 -3 -3 -2 -1 -------- Run | Scr Mat Mat Mat Fac Low Low Zio Pro Fac Low Low Dat Pro Fac Was Fac Upp Upp Zhi Pro Fac Upp Upp War Pro Res Tes Res Acc Total Allies 28 | . . . . . . 2 5 . . . . . . . 19 . . . . . . . . . 2 . . . . Largest Group 19 | . . . . . . 2 7 7 . . . . . . 19 15 12 3 1 1 . . . . 2 . . . . Highest-Rated Group 714 | . . . . . . 36 167 167 . . . . . . 714 584 455 105 31 31 . . . . 84 . . . . Highest-Rated Ally 50 | . . . . . . 20 31 31 . . . . . . 50 50 46 44 31 31 . . . . 42 . . . . Total Orders 41 | . . . . . . 2 . . . . . . . . 3 1 . . 4 . 3 . . 4 7 8 7 2 . STAY 4 | . . . . . . 1 . . . . . . . . 1 . . . . . . . . . 2 . . . . FOLLOW 3 | . . . . . . 1 . . . . . . . . . . . . . . . . . . 2 . . . . EXPLORE 17 | . . . . . . . . . . . . . . . 2 . . . 2 . 1 . . 2 1 4 4 1 . RETURN 17 | . . . . . . . . . . . . . . . . 1 . . 2 . 2 . . 2 2 4 3 1 . Ally Attacks 219 | . . . . . . 25 . 21 . . . . . . 83 30 54 1 . . . . . . 5 . . . . Total Damage 7738 | . . . . . . 320 . 342 . . . . . . 4308 1122 1512 . . . . . . . 134 . . . . Kills 37 | . . . . . . 2 . 5 . . . . . . 9 11 10 . . . . . . . . . . . . Allies Corrupted . | . . . . . . . . . . . . . . . . . . . . . . . . . . . . . . Allies Melted 2 | . . . . . . . . . . . . . . . . . . . . . . . 1 1 . . . . . Intel | -11 -10 -9 -8 -7 -7 -7 -7 -6 -6 -6 -6 -6 -5 -5 -5 -5 -5 -5 -5 -4 -4 -4 -4 -4 -3 -3 -3 -2 -1 ------- Run | Scr Mat Mat Mat Fac Low Low Zio Pro Fac Low Low Dat Pro Fac Was Fac Upp Upp Zhi Pro Fac Upp Upp War Pro Res Tes Res Acc Robot Analysis Total 5 | . . . . . . . . . 1 . . . . . . . . . 4 . . . . . . . . . . Derelict Logs Recovered 17 | . . . . . . 1 2 1 . 2 2 . 2 . . . 2 2 . 2 . . 1 . . . . . . Drone Launches 23 | . . . . . . . . . . . . . . . 2 1 . . 2 . 2 . . 3 2 5 5 1 . Drone Recoveries 18 | . . . . . . . . . . . . . . . . 1 . . 2 . 2 . . 3 2 4 4 . . Exploration | -11 -10 -9 -8 -7 -7 -7 -7 -6 -6 -6 -6 -6 -5 -5 -5 -5 -5 -5 -5 -4 -4 -4 -4 -4 -3 -3 -3 -2 -1 ------------- Run | Scr Mat Mat Mat Fac Low Low Zio Pro Fac Low Low Dat Pro Fac Was Fac Upp Upp Zhi Pro Fac Upp Upp War Pro Res Tes Res Acc Turns Passed 45427 | 57 517 1395 1295 1268 4532 2699 4786 1838 1373 1999 1727 149 1640 151 598 455 987 594 536 1773 400 1854 1406 768 4609 1990 1123 2026 882 Spaces Moved 19411 | 55 312 567 440 503 1479 979 1740 659 506 1150 762 97 865 68 332 292 797 454 200 841 183 917 563 471 1797 685 453 934 310 Core 107 | 7 . . . . . . . . . . . . . . . . . . . . . . . . . . . . 100 Treads 9202 | . . 401 62 135 1479 50 215 659 178 . . . . 2 . . . . . 288 183 907 517 49 1797 685 453 934 208 Legs 3777 | . 92 166 378 368 . 929 1525 . 317 . . . . . . . . . . . . . . . . . . . 2 Wheels 6325 | 48 220 . . . . . . . 11 1150 762 97 865 66 332 292 797 454 200 553 . 10 46 422 . . . . . Hover . | . . . . . . . . . . . . . . . . . . . . . . . . . . . . . . Flight . | . . . . . . . . . . . . . . . . . . . . . . . . . . . . . . Fastest Speed 50 | 50 80 150 200 185 165 185 205 205 130 130 140 140 150 130 130 116 116 116 116 116 186 116 106 106 185 177 175 165 50 Average Speed 177 | 76 102 183 223 233 184 214 258 212 212 139 140 140 150 156 134 127 116 116 116 139 186 185 198 119 194 180 175 165 148 Slowest Speed 290 | 80 150 240 240 270 185 245 275 225 270 140 140 170 150 245 160 160 116 160 116 186 186 186 290 190 230 230 177 175 210 Overloaded Moves . | . . . . . . . . . . . . . . . . . . . . . . . . . . . . . . Propulsion Burnouts . | . . . . . . . . . . . . . . . . . . . . . . . . . . . . . . Robots Hopped 2 | . . . . . . . 2 . . . . . . . . . . . . . . . . . . . . . . Cave-ins Triggered . | . . . . . . . . . . . . . . . . . . . . . . . . . . . . . . Teleports 1 | . . . . . . . . . . . . . . . . . . . . . . . . . . . . . 1 Exploration Rate (%) 55 | 4 38 45 36 12 93 88 87 64 17 93 77 70 87 2 95 14 81 58 63 80 8 84 54 96 88 22 66 41 13 Regions Visited 29 Branch Regions 17 Pre-discovered Areas 9 | . . . . . . . 2 . . 1 1 1 . . . . . 1 3 . . . . . . . . . . Known Exits Taken 13 | . . . . 1 1 . . . 1 1 1 1 1 . . 1 . . . 1 1 . . . 1 1 1 . . Unknown Exits Taken 14 | 1 1 1 1 . . 1 1 1 . . . . . . . . 1 1 1 . . 1 1 1 . . . 1 . Scrap Searched 31 | . . . . . 2 3 3 1 . 4 3 . 3 . . . 2 1 . 3 . 2 2 . 2 . . . . Spaces Dug 273 | . 2 5 13 5 41 19 . 29 18 1 2 . 1 . 6 . . . . 22 1 29 1 12 14 14 9 25 4 Terrain Destroyed 1219 | . 2 5 13 5 41 105 . 29 31 1 5 . 10 1 11 . . . . 96 1 60 63 251 20 15 10 275 169 Melee 105 | . 2 5 13 5 2 . . . 18 1 2 . 1 . 6 . . . . 5 1 . 1 . 2 4 9 24 4 Projectile 75 | . . . . . . . . . . . 3 . . 1 5 . . . . . . . . . 18 11 1 2 34 AOE 1039 | . . . . . 39 105 . 29 13 . . . 9 . . . . . . 91 . 60 62 251 . . . 249 131 Terrain Rammed . | . . . . . . . . . . . . . . . . . . . . . . . . . . . . . . Walls Destroyed . | . . . . . . . . . . . . . . . . . . . . . . . . . . . . . . Machines Disabled . | . . . . . . . . . . . . . . . . . . . . . . . . . . . . . . Actions | -11 -10 -9 -8 -7 -7 -7 -7 -6 -6 -6 -6 -6 -5 -5 -5 -5 -5 -5 -5 -4 -4 -4 -4 -4 -3 -3 -3 -2 -1 --------- Run | Scr Mat Mat Mat Fac Low Low Zio Pro Fac Low Low Dat Pro Fac Was Fac Upp Upp Zhi Pro Fac Upp Upp War Pro Res Tes Res Acc Total 28853 | 66 433 780 659 575 3223 1550 1907 1074 733 1505 1417 111 1201 109 453 372 829 504 496 1382 235 1046 783 607 2805 1358 737 1309 594 Wait 6623 | . 44 28 90 7 1682 487 22 383 109 307 638 4 317 13 72 48 10 13 276 476 10 75 109 . 802 399 106 61 35 Move 19378 | 54 311 566 439 502 1478 978 1735 658 505 1149 761 96 864 68 331 291 796 453 199 840 182 916 562 470 1796 684 452 933 309 Hop 2 | . . . . . . . 2 . . . . . . . . . . . . . . . . . . . . . . Pick Up 449 | 6 12 43 30 19 6 12 26 4 16 6 5 4 7 8 13 8 1 5 5 6 12 6 18 30 36 45 24 24 12 Fast Attach 63 | 6 5 3 1 . 1 1 . . 1 2 . . . 1 . 2 . 1 3 . . . 1 2 3 6 8 9 7 Attach 220 | . 6 11 9 4 2 9 2 . 11 1 2 3 . 4 4 3 . 5 . 2 7 8 17 16 22 21 9 11 31 Detach 28 | . . . . . . 1 . . . . . . . 1 . . . 2 . . . 2 4 4 5 3 2 . 4 Swap 511 | . 2 12 10 12 19 12 11 15 34 12 2 . 8 6 8 8 6 8 3 22 8 16 22 18 20 52 36 79 50 Drop 392 | . 3 26 17 16 5 4 20 5 20 8 5 4 2 5 5 10 2 8 5 5 11 8 14 23 16 52 37 30 26 Fire 771 | . 17 66 . 9 12 15 . 8 19 13 2 . 2 3 14 2 14 9 . 26 4 15 34 43 89 82 38 135 100 Melee 347 | . 33 25 63 6 18 . 89 1 18 7 2 . 1 . 6 . . . 5 5 1 . 2 1 6 6 21 27 4 Ram 1 | . . . . . . . . . . . . . . . . . . . . . . . . . . . . . 1 Kick 10 | . . . . . . . . . . . . . . . . . . . . . . . . . . . . . 10 Crush 7 | . . . . . . 1 . . . . . . . . . . . . . . . . . . . 1 . . 5 Escape Stasis 4 | . . . . . . . . . . . . . . . . . . . . . . . . . . . 4 . . Rewire 32 | . . . . . . 30 . . . . . . . . . . . . . . . . . . 2 . . . . Trap 15 | . . . . . . . . . . . . . . . . . . . . . . . . . 8 7 . . . Miscellaneous . | . . . . . . . . . . . . . . . . . . . . . . . . . . . . . . Route ------- -11/Scrapyard -10/Materials (discovered 2 exits: *Mat / [Min]) -9/Materials -8/Materials -7/Factory (discovered 3 exits: Sto / *Low x2) -7/Lower Caves -7/Lower Caves (discovered 2 exits: *Fac / *Zio) -7/Zion -6/Proximity Caves -6/Factory (discovered 3 exits: *Fac / *Low x2) -6/Lower Caves -6/Lower Caves (discovered 2 exits: *Fac / *Dat) -6/Data Miner -5/Proximity Caves -5/Factory -5/Waste -5/Factory (discovered 2 exits: *Upp x2) -5/Upper Caves -5/Upper Caves (discovered 2 exits: *Fac / *Zhi) -5/Zhirov -4/Proximity Caves -4/Factory (discovered 3 exits: Res / *Upp x2) -4/Upper Caves -4/Upper Caves (discovered 2 exits: *Res / *War) -4/Warlord -3/Proximity Caves -3/Research (discovered 3 exits: Res / *Tes x2) -3/Testing -2/Research -1/Access To Epsilon Eridani History --------- Turn | Location | Event 16 | -11/Scrapyard | Discovered new exit (range 15) 58 | -11/Scrapyard | Entered Materials 147 | -10/Materials | Discovered new exit (range 16) 229 | -10/Materials | Discovered new exit (range 14) 331 | -10/Materials | Build established: Mutant 364 | -10/Materials | Core integrity fell below 50% 392 | -10/Materials | Lost 3 parts (1p2n) 575 | -10/Materials | Entered another Materials area 575 | -9/Materials | Evolved 2 slots: Utility x2 953 | -9/Materials | Core integrity fell below 50% 1709 | -9/Materials | Discovered new exit (range 10) 1970 | -9/Materials | Entered another Materials area 1970 | -8/Materials | Evolved 2 slots: Utility x2 2042 | -8/Materials | Build established: Hauler-Mutant 2732 | -8/Materials | Lost 3 parts (1n2u) 3097 | -8/Materials | Discovered new exit (range 4) 3265 | -8/Materials | Entered Factory 3265 | -7/Factory | Evolved 2 slots: Utility x2 4272 | -7/Factory | Identified exit to Storage 4272 | -7/Factory | Identified exit to Lower Caves 4533 | -7/Factory | Entered Lower Caves 5594 | -7/Lower Caves | Build established: Hauler-Skirmisher 8244 | -7/Lower Caves | Attracted the attention of an 0b10 checkpoint 8871 | -7/Lower Caves | Discovered new exit (range 14) 8893 | -7/Lower Caves | Identified exit to Lower Caves 9065 | -7/Lower Caves | Entered another Lower Caves area 9088 | -7/Lower Caves | Learned Factory stockpile data 9154 | -7/Lower Caves | Attracted the attention of an 0b10 outpost 9200 | -7/Lower Caves | Core integrity fell below 50% 9231 | -7/Lower Caves | Destroyed 16 combat bots 9240 | -7/Lower Caves | Lost 9 parts (1p2n3u3w) 9435 | -7/Lower Caves | Build established: Hauler-Mutant 9494 | -7/Lower Caves | Discovered new exit (range 6) 11473 | -7/Lower Caves | Discovered new exit (range 12) 11764 | -7/Lower Caves | Entered Zion 11764 | -7/Zion | Accompanied by 2 allies 11872 | -7/Zion | Discovered new exit (range 12) 11959 | -7/Zion | Given the Hacking Drone Bay 11959 | -7/Zion | Found Prototype Device 12930 | -7/Zion | Learned 4 Factory zone layouts 12935 | -7/Zion | Learned location of 1 exit from Lower Caves 13390 | -7/Zion | Found CR-A16's Pointy Stick 13573 | -7/Zion | Learned location of Armory (-4) 13617 | -7/Zion | Learned location of Quarantine (-2) 13928 | -7/Zion | Gained Derelict followers 16376 | -7/Zion | Loaded intel: 4 derelict terminal locations 16550 | -7/Zion | Entered Proximity Caves 16550 | -6/Proximity Caves | Accompanied by 7 allies 16694 | -6/Proximity Caves | Acquired the password to a Derelict Tinkerer's latest research 16755 | -6/Proximity Caves | Found Prototype Special Weapon 17363 | -6/Proximity Caves | Attracted the attention of an 0b10 checkpoint 17609 | -6/Proximity Caves | Caught by Unaware searching for contraband prototypes 17678 | -6/Proximity Caves | Learned Factory stockpile data 18287 | -6/Proximity Caves | Discovered new exit (range 9) 18388 | -6/Proximity Caves | Entered Factory 18388 | -6/Factory | Evolved 2 slots: Utility x2 19175 | -6/Factory | Discovered new exit (range 4) 19180 | -6/Factory | Identified exit to Factory 19202 | -6/Factory | Build established: Hauler-Assassin 19468 | -6/Factory | Fabricated Hcp. Storage Unit (x1) 19546 | -6/Factory | Identified exit to Lower Caves 19575 | -6/Factory | Build established: Hauler-Mutant 19761 | -6/Factory | Entered Lower Caves 19762 | -6/Lower Caves | Identified exit to Lower Caves 20221 | -6/Lower Caves | Build established: Hauler-Skirmisher 20393 | -6/Lower Caves | Learned location of 1 exit from Factory 20488 | -6/Lower Caves | Attacked by a delusional Derelict stockpiling parts 21760 | -6/Lower Caves | Entered another Lower Caves area 21764 | -6/Lower Caves | Mass Driver stolen by Master Thief 22063 | -6/Lower Caves | Discovered exit to Factory (range 13) 22415 | -6/Lower Caves | Learned Factory terminal intel 22725 | -6/Lower Caves | Discovered new exit (range 5) 23181 | -6/Lower Caves | Identified exit to Data Miner 23487 | -6/Lower Caves | Entered Data Miner 23487 | -6/Data Miner | Discovered new exit (range 7) 23514 | -6/Data Miner | Met Data Miner 23543 | -6/Data Miner | Learned location of Section 7 (-2) 23543 | -6/Data Miner | Acquired the access code to Warlord's prototype stash 23566 | -6/Data Miner | Received God Mode back door access code from Data Miner 23606 | -6/Data Miner | Identified exit to Proximity Caves 23636 | -6/Data Miner | Entered Proximity Caves 24046 | -5/Proximity Caves | Learned 4 Factory zone layouts 25248 | -5/Proximity Caves | Build established: Hauler-Assassin 25276 | -5/Proximity Caves | Entered Factory 25276 | -5/Factory | Evolved 2 slots: Propulsion x2 25277 | -5/Factory | Identified exit to Factory 25280 | -5/Factory | Loaded intel: 19 terminal locations 25427 | -5/Factory | Sucked down chute 25427 | -5/Factory | Entered Waste 25457 | -5/Waste | Spotted C-40 Crusher 25552 | -5/Waste | Spotted C-40 Crusher 25588 | -5/Waste | Spotted C-40 Crusher 25598 | -5/Waste | Crushed by Compactor (1 part destroyed, 1 dropped) 25599 | -5/Waste | Spotted C-40 Crusher 25599 | -5/Waste | Spotted C-40 Crusher 25611 | -5/Waste | Crushed by Compactor (1 part destroyed) 25612 | -5/Waste | Spotted C-40 Crusher 25640 | -5/Waste | Warlord forces began an assault 25647 | -5/Waste | Allies destroyed C-40 Crusher 25647 | -5/Waste | Allies destroyed C-40 Crusher 25655 | -5/Waste | Allies destroyed C-40 Crusher 25658 | -5/Waste | Allies destroyed C-40 Crusher 25658 | -5/Waste | Allies destroyed C-40 Crusher 25664 | -5/Waste | Allies destroyed C-40 Crusher 25732 | -5/Waste | Build established: Hauler-Mutant 25871 | -5/Waste | Discovered new exit (range 16) 25978 | -5/Waste | Identified exit to Factory 26025 | -5/Waste | Entered Factory 26025 | -5/Factory | Accompanied by 15 allies 26154 | -5/Factory | Identified Hacking Drone Bay 26199 | -5/Factory | Identified exit to Upper Caves 26372 | -5/Factory | Fabricated Lgt. Regenerative Plating (x1) 26480 | -5/Factory | Entered Upper Caves 26480 | -5/Upper Caves | Accompanied by 12 allies 26511 | -5/Upper Caves | Encountered a Warlord checkpoint 26990 | -5/Upper Caves | Discovered new exit (range 16) 27226 | -5/Upper Caves | Learned location of 1 exit from Proximity Caves 27467 | -5/Upper Caves | Entered another Upper Caves area 27467 | -5/Upper Caves | Accompanied by 3 allies 27488 | -5/Upper Caves | Discovered exit to Factory (range 12) 27495 | -5/Upper Caves | Learned 4 Factory zone layouts 28017 | -5/Upper Caves | Discovered new exit (range 16) 28061 | -5/Upper Caves | Entered Zhirov 28061 | -5/Zhirov | Accompanied by 1 ally 28061 | -5/Zhirov | Discovered new exit (range 4) 28082 | -5/Zhirov | Met Zhirov 28104 | -5/Zhirov | Learned location of Testing (-3) 28104 | -5/Zhirov | Learned location of Command (-1) 28130 | -5/Zhirov | Zhirov requested help retrieving the SGEMP Prototype 28149 | -5/Zhirov | Found Alien Artifact 28168 | -5/Zhirov | Found Alien Artifact 28597 | -5/Zhirov | Entered Proximity Caves 28597 | -4/Proximity Caves | Accompanied by 1 ally 29463 | -4/Proximity Caves | Attracted the attention of an 0b10 checkpoint 29565 | -4/Proximity Caves | Learned location of 1 exit from Research 30240 | -4/Proximity Caves | Learned Research stockpile data 30370 | -4/Proximity Caves | Entered Factory 30370 | -4/Factory | Evolved 2 slots: Utility x2 30371 | -4/Factory | Identified exit to Upper Caves 30372 | -4/Factory | Identified exit to Research 30405 | -4/Factory | Discovered exit to Upper Caves (range 74) 30453 | -4/Factory | Identified Transdimensional Reconstructor 30453 | -4/Factory | Identified Integrated Dissipator 30453 | -4/Factory | Identified Molecular Deconstructor 30462 | -4/Factory | Installed Integrated Dissipator, increased core heat dissipation (+20) 30732 | -4/Factory | Found Quantum Capacitor 30770 | -4/Factory | Entered Upper Caves 30771 | -4/Upper Caves | Encountered a Warlord checkpoint 32038 | -4/Upper Caves | Attracted the attention of an 0b10 base 32083 | -4/Upper Caves | Destroyed 7 combat bots 32328 | -4/Upper Caves | Discovered new exit (range 11) 32624 | -4/Upper Caves | Entered another Upper Caves area 32960 | -4/Upper Caves | Discovered exit to Research (range 10) 33345 | -4/Upper Caves | Lost 5 parts (2n3w) 33877 | -4/Upper Caves | Discovered new exit (range 8) 34030 | -4/Upper Caves | Entered Warlord 34061 | -4/Warlord | Discovered new exit (range 24) 34116 | -4/Warlord | Visited the Vortex Lab 34125 | -4/Warlord | Found Prototype Energy Cannon 34127 | -4/Warlord | Found Prototype Energy Cannon 34133 | -4/Warlord | Warlord's base attacked by MAIN.C 34316 | -4/Warlord | Met Warlord 34330 | -4/Warlord | Opened Warlord's prototype stash 34335 | -4/Warlord | Found Prototype Reactor 34339 | -4/Warlord | Found Exp. Targeting Computer 34349 | -4/Warlord | Found Prototype Hackware 34353 | -4/Warlord | Found Prototype Processor 34353 | -4/Warlord | Identified Exp. Target Analyzer 34483 | -4/Warlord | Warlord forces counterattacked 34498 | -4/Warlord | Spotted Executioner 34499 | -4/Warlord | Spotted Striker 34513 | -4/Warlord | Destroyed Executioner 34548 | -4/Warlord | Destroyed 7 combat bots 34556 | -4/Warlord | Found Prototype Ballistic Cannon 34577 | -4/Warlord | Spotted B-90 Cyclops 34586 | -4/Warlord | Destroyed B-90 Cyclops 34590 | -4/Warlord | Spotted Striker 34592 | -4/Warlord | Destroyed Striker 34622 | -4/Warlord | Destroyed 9 combat bots 34622 | -4/Warlord | Spotted B-86 Titan 34627 | -4/Warlord | Destroyed B-86 Titan 34638 | -4/Warlord | Found Prototype Ballistic Cannon 34645 | -4/Warlord | Lost 4 parts (1p3n) 34675 | -4/Warlord | Spotted Executioner 34684 | -4/Warlord | Destroyed Executioner 34702 | -4/Warlord | Spotted Striker 34719 | -4/Warlord | Destroyed Striker 34740 | -4/Warlord | Destroyed 18 combat bots 34748 | -4/Warlord | Spotted Striker 34750 | -4/Warlord | Spotted Striker 34758 | -4/Warlord | Spotted Executioner 34791 | -4/Warlord | Core integrity fell below 50% 34793 | -4/Warlord | Destroyed Striker 34798 | -4/Warlord | Entered Proximity Caves 34798 | -3/Proximity Caves | Identified Hvy. Autocannon (x2) 34827 | -3/Proximity Caves | Lost 6 parts (1n2u3w) 35932 | -3/Proximity Caves | Attracted the attention of an 0b10 outpost 36002 | -3/Proximity Caves | Destroyed 8 combat bots 36008 | -3/Proximity Caves | Lost 7 parts (4n2u1w) 37221 | -3/Proximity Caves | Received a Behemoth hack from an annoying Tinkerer 37958 | -3/Proximity Caves | Spotted B-86 Titan 38778 | -3/Proximity Caves | Destroyed B-86 Titan 39183 | -3/Proximity Caves | Discovered exit to Research (range 14) 39407 | -3/Proximity Caves | Entered Research 39407 | -3/Research | Evolved 2 slots: Power x1, Utility x1 39408 | -3/Research | Identified exit to Research 39453 | -3/Research | Identified Ghost Barrier 39719 | -3/Research | Fabricated Hcp. Storage Unit (x1) 39745 | -3/Research | Fabricated Hcp. Storage Unit (x1) 39903 | -3/Research | Identified exit to Testing 41135 | -3/Research | Found Enh. Force Lance 41397 | -3/Research | Entered Testing 41636 | -3/Testing | Spotted PD-PU4CY09O1K 41647 | -3/Testing | Destroyed PD-PU4CY09O1K 41975 | -3/Testing | Found Portable AFG 42040 | -3/Testing | Found Prototype Leg 42222 | -3/Testing | Found Prototype Launcher 42289 | -3/Testing | Found Prototype Ballistic Cannon 42308 | -3/Testing | Discovered exit to Research (range 10) 42341 | -3/Testing | Identified Vortex Chain Reactor 42365 | -3/Testing | Identified Myomer Exoskeleton 42375 | -3/Testing | Identified Vortex Cannon (x2) 42385 | -3/Testing | Identified Omega Cannon 42386 | -3/Testing | Identified Tactical Quantum Warhead 42416 | -3/Testing | Found Prototype Device 42417 | -3/Testing | Identified Exp. Hardlight Generator 42520 | -3/Testing | Entered Research 42520 | -2/Research | Warlord forces began assault on 0b10 42520 | -2/Research | Evolved 2 slots: Utility x2 42630 | -2/Research | Research machine network offline 43051 | -2/Research | Spotted Executioner 43053 | -2/Research | Spotted Striker 43056 | -2/Research | Destroyed Executioner 43075 | -2/Research | Destroyed Striker 43096 | -2/Research | Destroyed 7 combat bots 43227 | -2/Research | Spotted Striker 43237 | -2/Research | Destroyed Striker 43506 | -2/Research | Found Prototype Device 43506 | -2/Research | Identified EM Dispersion Field 43630 | -2/Research | Discovered new exit (range 13) 43668 | -2/Research | Found Prototype Device 43668 | -2/Research | Identified Exp. Shield Generator 43676 | -2/Research | Found Exp. Shield Generator 44300 | -2/Research | Spotted Striker 44347 | -2/Research | Destroyed 7 combat bots 44354 | -2/Research | Lost 3 parts (2u1w) 44391 | -2/Research | High security lockdown imminent 44471 | -2/Research | High security lockdown engaged 44540 | -2/Research | Destroyed 8 combat bots 44546 | -2/Research | Entered Access 44546 | -1/Access | Evolved 2 slots: Weapon x2 44591 | -1/Access | Incoming investigation squad redirected 44690 | -1/Access | Garrison activated, responded to threat 44734 | -1/Access | Lost 3 parts (1u2w) 44740 | -1/Access | Destroyed 14 combat bots 44750 | -1/Access | Incoming investigation squad redirected 44796 | -1/Access | First assault squad dispatched 44815 | -1/Access | Incoming assault squad redirected 44898 | -1/Access | Destroyed 7 combat bots 45060 | -1/Access | Destroyed 10 combat bots 45100 | -1/Access | High security lockdown imminent 45117 | -1/Access | Build established: Hauler-Gunner 45180 | -1/Access | High security lockdown engaged 45294 | -1/Access | Warped through subspace 45318 | -1/Access | Spotted Investigator 45318 | -1/Access | Destroyed Investigator 45361 | -1/Access | Spotted B-99 Colossus 45362 | -1/Access | Core integrity fell below 50% 45394 | -1/Access | Energy Cycler disabled 45423 | -1/Access | Discovered new exit (range 6) 45428 | *** | Escaped! Last Messages --------------- 45385_ E-15 Imp destroyed. 45388_ System corrupted: Heat flow error (+127). 45388_ Acquired Cesium-ion Thruster. 45394_ ALERT: Power surge detected, dispatching additional patrols. 45394_ Energy Cycler explodes. 45400_ Penetrated by Slug. 45400_ Cesium-ion Thruster destroyed. 45403_ Triggered Segregator Trap. 45403_ Arcs of energy rise from the floor. 45411_ Myomer Exoskeleton destroyed. 45411_ Exp. Core Shielding destroyed. 45423_ The Access Shell folds into the floor. 45423_ EXIT=FOUND 45424_ Adv. Core Analyzer destroyed. 45426_ C-30 ARC bursts open, deploying its payload. 45426_ G-73 Enforcer unfolds itself. 45426_ B-74 Champion unfolds itself. 45426_ L-61 Swordsman unfolds itself. 45426_ I-47 Archangel unfolds itself. 45426_ Vortex Cannon destroyed. Map ----- +----------------------------------------------------+ | ?????????????????????????????????????????????????? | | ?????????????????????????????????????????????????? | | ?????????????????????????????????????????????????? | | ?????????????????????????????????????????????????? | | ?????????????????????????????????????????????????? | | ?????????????????????????????????????????????????? | | ?????????????????????????????????????????????????? | | ?????????????????????????????????????????????????? | | ?????????????????????????????????????????????????? | | ?????????????????????????????????????????????????? | | ?????????????????????????????????????????????????? | | ?????????????????????????????????????????????????? | | ?????????????????????????????????????????????????? | | ?????????????????????????????????????????????????? | | ??????????# ????????????????????????????????????? | | ??????????# ????????????????????????????????????? | | ??????????# ????????????????????????????????????? | | ??????????# ????????????????????????????????????? | | ??????????# ??????###???????????????????????????? | | ??????????# ####### ##########??????????????????? | | ??????????# """T""" "??????????????????? | | ??????????# """ """ "??????????????????? | | ??????????# g% "??????????????????? | | ??????????# gi b "??????????????????? | | ??????????# l "" "??????????????????? | | ??????????# @" "??????????????????? | | ??????????# "??????????????????? | | ??????????# "??????????????????? | | ??????????# s s "??????????????????? | | ??????????# ssss "??????????????????? | | ??????????# ####### ##########??????????????????? | | ??????????# #?????###???????????????????????????? | | ??????????# #???????????????????????????????????? | | ??????????# #???????????????????????????????????? | | ??????????# #???????????????????????????????????? | | ??????????# #???????????????????????????????????? | | ?#####????# #???????????????????????????????????? | | """T"""#??# #???????????????????????????????????? | | """ """#### ##??????????????????????????????????? | | #??????????????????????????????????? | | #??????????????????????????????????? | | #??????????????????????????????????? | | " " #??????????????????????????????????? | | "" """ ###??????????????????????????????????? | | " """ #????????????????????????????????????? | | " #????????????????????????????????????? | | #????????????????????????????????????? | | #????????????????????????????????????? | | #?#########??????????????????????????? | | ### ^ #? #??????????????????????????? | +----------------------------------------------------+ Best States ------------- Heat Dissipation 110 Coolant Potential 120 Energy Generation 55 Energy Capacity 700 Matter Stores 356 Matter Capacity 450 Sight Range 16 Robot Scan Range 22 Terrain Scan Range 24 Terrain Scan Density 210 Jamming Range 16 Cloak Strength 3 Armor Coverage 1050 Resistance: KI 25 Resistance: EM 75 Core Shielding 40 Propulsion Shielding 66 Weapon Shielding 66 Weapon Cycling 25 Evasion (%) 50 Targeting Accuracy 12 Target Analysis 12 Core Analysis 10 Recoil Reduction 4 Matter Filtering 50 Particle Charging 25 Kinecelleration 30 Force Boost 3 Salvage Targeting 4 Offensive Hacking 14 Defensive Hacking 34 Item Schematics ----------------- Hcp. Storage Unit | -9/Materials | Hacked Lrg. Storage Unit | -9/Materials | Scanalyzed Combat Drone Bay | -6/Data Miner | Free Lgt. Regenerative Plating | -6/Data Miner | Free Exp. Sensor Array | -6/Data Miner | Free Tactical Coordination Suite | -6/Data Miner | Free Exp. Transmission Jammer | -6/Data Miner | Free Exp. ECM Suite | -6/Data Miner | Free Cloaking Device | -6/Data Miner | Free Assault Drone Bay | -5/Zhirov | Free Exp. Heat Sink | -5/Zhirov | Free Exp. Optical Array | -5/Zhirov | Free Imp. Arc Thrower | -5/Zhirov | Free Quantum Capacitor | -3/Research | Scanalyzed Adv. Terrain Scan Processor | -3/Research | Scanalyzed Robot Schematics ------------------ S-27 Virus | -6/Data Miner | Free G-50 Soldier | -6/Data Miner | Free G-67 Veteran | -6/Data Miner | Free X-72 Disruptor | -6/Data Miner | Free I-36 Angel | -6/Data Miner | Free Fabricated ------------ Hcp. Storage Unit | x1 | -6/Factory Lgt. Regenerative Plating | x1 | -5/Factory Hcp. Storage Unit | x1 | -3/Research Hcp. Storage Unit | x1 | -3/Research Alien Tech Used ----------------- Integrated Dissipator Transdimensional Reconstructor Achievements -------------- Reappropriation The Science Guy Challenges ------------ None Game ------ Seed TerrabombPhaseSegregator Manual? 0 Play Time 06:05:32 Cumulative 132.2 hours Start 2021.01.06 @ 05:20:15 End 2021.01.09 @ 10:47:49 Sessions 6 Manual Loads 0 Difficulty Rogue Special Mode None Game No. 32 Rogue 32 Adventurer 0 Explorer 0 Win Type 0 Total 10 Types 6/1/1/1/1/0/0/0/0 Lore% 45 Gallery% 70 Achievement% 57 Wizard Run 0 Options --------- ASCII 0 Keyboard 0 Movement Numpad Keybinds 0 Fullscreen 1 Font 18/TerminusBold Map View 76x50 Tactical HUD 1 Map Filters NONE Filters NONE Steam 1 RUN: a702f05c-2d94-40a5-b53f-8e47936ae430